bitfinex/quotes_ETHUSD_20240822
["timestamp","ask_amount","ask_price","bid_price","bid_amount"]
[1724361219572,0.62873,2623.4,2623.1,3.81226]
[1724361219777,0.08979742,2623.3,2623.1,3.81226]
[1724361220317,0.62873,2623.4,2623.1,3.81226]
[1724361220612,0.08979742,2623.3,2623.1,3.81226]
[1724361220837,0.62873,2623.4,2623.1,3.81226]
[1724361221177,0.08940078,2623.3,2623.1,3.81226]
[1724361221377,0.62873,2623.4,2623.1,3.81226]
[1724361221578,0.08940078,2623.3,2623.1,3.81226]
[1724361221817,0.62873,2623.4,2623.1,3.81226]
[1724361222018,0.08940078,2623.3,2623.1,3.81226]
[1724361222180,0.62873,2623.4,2623.1,3.81226]
[1724361222376,0.08940078,2623.3,2623.1,3.81226]
[1724361222607,0.62873,2623.4,2623.1,3.81226]
[1724361222777,0.08940078,2623.3,2623.1,3.81226]
[1724361222978,0.62873,2623.4,2623.1,3.81226]
[1724361223207,0.08940078,2623.3,2623.1,3.81226]
[1724361223402,6.2873,2623.5,2623.1,3.81226]
[1724361223620,0.71813078,2623.4,2623.1,3.81226]
[1724361225323,6.0747,2623.3,2622.8,3.81257]
[1724361225621,6.0747,2623.3,2622.6,7.62584]
[1724361225622,6.0747,2623.2,2622.6,7.62584]
[1724361225919,3.8121,2623.3,2622.6,7.62584]
[1724361225920,6.0747,2623.0,2622.6,7.62584]
[1724361226121,6.0747,2623.0,2622.6,3.81292]
[1724361226438,0.38121,2623.2,2622.4,7.62638]
[1724361226439,0.08896383,2622.9,2622.4,7.62638]
[1724361226576,6.0747,2622.8,2622.5,3.81306]
[1724361226782,0.08896383,2622.7,2622.5,3.81306]
[1724361226982,6.68217,2622.8,2622.4,3.81317]
[1724361227185,0.08896383,2622.7,2622.4,3.81317]
[1724361227434,6.68217,2622.8,2622.4,7.62638]
[1724361227615,0.08872172,2622.7,2622.4,3.81317]
[1724361227940,6.68217,2622.8,2622.4,3.81317]
[1724361228118,0.08872172,2622.6,2622.4,3.81317]
[1724361228316,0.668217,2622.7,2622.4,3.81317]
[1724361228484,0.08862755,2622.5,2622.4,3.81317]
[1724361229030,6.2166,2622.5,2622.4,3.81317]
[1724361229232,6.30522755,2622.5,2622.4,3.81317]
[1724361229990,6.30522755,2622.5,2622.3,3.81343]
[1724361232480,6.93575031,2622.5,2622.2,0.06397134]
[1724361233544,6.93575031,2622.5,2622.2,3.87748134]
[1724361235954,6.93575031,2622.5,2622.2,0.06397134]
[1724361241491,6.30522755,2622.5,2622.2,0.06397134]
[1724361247189,0.08862755,2622.5,2622.2,0.06397134]
[1724361247390,0.08862755,2622.5,2622.3,3.81336]
[1724361247595,6.3521,2622.7,2622.3,3.81336]
[1724361247792,0.08785395,2622.4,2622.3,3.81336]
[1724361247953,6.3521,2622.7,2622.3,3.81336]
[1724361248282,0.08785395,2622.4,2622.3,3.81336]
[1724361248861,6.3521,2622.7,2622.3,3.81336]
[1724361249062,0.08785395,2622.6,2622.3,3.81336]
[1724361251618,0.08785395,2622.6,2622.4,3.81318]
[1724361251962,6.4595,2622.9,2622.4,3.81318]
[1724361252170,0.08488567,2622.5,2622.4,3.81318]
[1724361252478,6.4595,2622.9,2622.5,7.6262]
[1724361252681,6.4595,2622.9,2622.5,3.81307]
[1724361253605,6.5319,2623.1,2622.6,3.81298]
[1724361256111,10.34419,2623.1,2622.5,5.220222]
[1724361256966,10.34419,2623.1,2622.5,3.81315]
[1724361261684,0.08488567,2623.0,2622.5,3.81315]
[1724361263925,6.122,2622.9,2622.5,3.81315]
[1724361264738,0.08488567,2622.8,2622.5,3.81315]
[1724361267314,0.08488567,2622.8,2622.4,3.8132]
[1724361267642,0.08488567,2622.8,2622.4,7.62641]
[1724361281869,6.0992,2622.7,2622.3,7.36]
[1724361282069,0.08493286,2622.6,2622.3,7.36]
[1724361283582,6.0992,2622.5,2622.3,7.36]
[1724361284278,0.08493286,2622.4,2622.3,7.36]
[1724361285648,0.08493286,2622.4,2622.3,11.17344]
[1724361285995,6.0992,2622.5,2622.3,3.81344]
[1724361286680,0.08493286,2622.4,2622.3,3.81344]
[1724361286886,0.08493286,2622.4,2622.3,5.13956524]
[1724361287084,6.4416,2622.7,2622.3,3.81344]
[1724361287269,0.08493286,2622.6,2622.3,3.81344]
[1724361287589,0.08493286,2622.6,2622.4,3.81329]
[1724361288080,0.08493286,2622.6,2622.4,3.81323]
[1724361288391,0.08493286,2622.6,2622.5,3.81315]
[1724361288540,0.08493286,2622.6,2622.5,5.170218]
[1724361288749,6.4416,2622.9,2622.6,3.81299]
[1724361291593,0.08481156,2622.8,2622.6,3.81299]
[1724361292561,6.4629,2623.1,2622.6,3.81299]
[1724361292762,0.08481156,2622.7,2622.6,3.81299]
[1724361292962,6.4629,2623.1,2622.6,3.81299]
[1724361293205,0.08481156,2622.7,2622.6,3.81299]
[1724361293407,6.4629,2623.1,2622.6,3.81299]
[1724361293609,0.08481156,2622.7,2622.6,3.81299]
[1724361293765,10.2752,2623.1,2622.5,3.81315]
[1724361293965,0.08481156,2622.7,2622.5,3.81315]
[1724361294181,10.2752,2623.1,2622.5,5.25014707]
[1724361294385,0.08481156,2622.6,2622.5,3.81315]
[1724361294581,10.2752,2623.1,2622.5,3.81315]
[1724361294782,0.08481156,2622.6,2622.5,3.81315]
[1724361295017,10.2752,2623.1,2622.5,3.81315]
[1724361295217,0.08481156,2622.6,2622.5,3.81315]
[1724361295373,10.2752,2623.1,2622.5,3.81315]
[1724361295573,0.08481156,2622.6,2622.5,3.81315]
[1724361296070,10.2752,2623.1,2622.5,3.81315]
[1724361296270,0.08481156,2623.0,2622.5,3.81315]
[1724361299516,6.2762,2622.9,2622.5,3.81315]
[1724361299817,7.29353116,2622.9,2622.5,3.81315]
[1724361300125,0.084852,2622.8,2622.5,3.81315]
[1724361301906,0.084852,2622.8,2622.4,3.8132]
[1724361302215,6.1722,2622.7,2622.4,3.8132]
[1724361302523,0.08485872,2622.6,2622.4,3.8132]
[1724361303684,0.08485872,2622.6,2622.2,3.87747134]
[1724361303685,6.4852,2622.5,2622.2,3.87747134]
[1724361304130,0.08485872,2622.4,2622.2,3.87747134]
[1724361304288,0.08485872,2622.4,2622.3,1.32616676]
[1724361304474,6.4852,2622.7,2622.3,5.13957676]
[1724361304678,6.4852,2622.7,2622.3,3.81341]
[1724361304918,0.08485872,2622.6,2622.4,5.13933615]
[1724361305213,0.08485872,2622.6,2622.5,3.81315]
[1724361307419,0.08485872,2622.6,2622.3,5.75334831]
[1724361307420,0.08485872,2622.6,2622.4,3.81329]
[1724361308076,0.08485872,2622.6,2622.3,3.81335]
[1724361308827,0.08485872,2622.6,2622.3,7.62671]
[1724361309024,6.4852,2622.7,2622.3,7.62671]
[1724361309191,6.4852,2622.7,2622.3,3.81335]
[1724361309386,0.08481154,2622.6,2622.3,3.81335]
[1724361309802,6.4852,2622.7,2622.3,3.81335]
[1724361309987,0.64852,2622.6,2622.3,3.81335]
[1724361310196,0.08481154,2622.6,2622.3,3.81335]
[1724361310503,6.4852,2622.7,2622.3,3.81335]
[1724361310694,0.08481154,2622.6,2622.3,3.81335]
[1724361310894,6.4852,2622.7,2622.3,3.81335]
[1724361311115,0.0847037,2622.6,2622.3,3.81335]
[1724361311317,6.4852,2622.7,2622.3,3.81335]
[1724361311508,0.0847037,2622.6,2622.3,7.62672]
[1724361311849,7.51498,2622.7,2622.3,7.62672]
[1724361312001,7.51498,2622.7,2622.3,3.81335]
[1724361312203,0.0847037,2622.6,2622.3,3.81335]
[1724361312418,0.0847037,2622.6,2622.3,7.62672]
[1724361312619,6.4852,2622.7,2622.3,7.62672]
[1724361313036,0.0847037,2622.6,2622.3,7.62672]
[1724361314453,0.0847037,2622.6,2622.3,3.81335]
[1724361314806,0.0847037,2622.6,2622.3,7.62672]
[1724361315837,0.0847037,2622.6,2622.3,3.81335]
[1724361316049,6.3397,2622.5,2622.3,3.81335]
[1724361316345,0.0847037,2622.4,2622.2,3.87755134]
[1724361316546,0.0847037,2622.4,2622.2,0.06397134]
[1724361316844,6.3397,2622.5,2622.2,0.06397134]
[1724361317044,0.0847037,2622.3,2622.2,0.06397134]
[1724361317246,6.2605,2622.3,2622.2,3.87753134]
[1724361317419,6.3452037,2622.3,2622.2,0.06397134]
[1724361321268,6.2605,2622.3,2622.2,0.06397134]
[1724361321444,7.03423947,2622.3,2622.2,0.06397134]
[1724361323029,4.58717947,2622.3,2622.2,0.06397134]
[1724361323275,10.84767947,2622.3,2622.2,0.06397134]
[1724361344279,0.08429247,2622.3,2622.2,0.06397134]
[1724361344642,5.9255,2622.4,2622.2,0.06397134]
[1724361344977,0.08382721,2622.3,2622.2,0.06397134]
[1724361345990,6.14572721,2622.3,2622.2,0.06397134]
[1724361346312,9.95916721,2622.3,2622.2,0.06397134]
[1724361349758,0.08382721,2622.3,2622.2,0.06397134]
[1724361350159,9.87507,2622.5,2622.2,0.06397134]
[1724361350373,0.08387441,2622.3,2622.2,0.06397134]
[1724361350578,9.87507,2622.5,2622.2,0.06397134]
[1724361350780,0.08387441,2622.3,2622.2,0.06397134]
[1724361350982,9.87507,2622.5,2622.2,0.06397134]
[1724361351155,0.08393511,2622.3,2622.2,0.06397134]
[1724361352617,9.87507,2622.5,2622.2,0.06397134]
[1724361352805,0.08393511,2622.3,2622.2,0.06397134]
[1724361353011,9.87507,2622.5,2622.2,0.06397134]
[1724361353183,0.08393511,2622.3,2622.2,0.06397134]
[1724361353374,9.87507,2622.5,2622.2,0.06397134]
[1724361353579,0.08393511,2622.3,2622.2,0.06397134]
[1724361354079,9.87507,2622.5,2622.2,0.06397134]
[1724361354313,0.08393511,2622.4,2622.2,0.06397134]
[1724361356788,3.89723511,2622.4,2622.2,0.06397134]
[1724361363395,0.08393511,2622.4,2622.2,0.06397134]
[1724361364610,3.89723511,2622.4,2622.2,0.06397134]
[1724361375445,4.66827562,2622.4,2622.2,0.06397134]
[1724361377738,3.89723511,2622.4,2622.2,0.06397134]
[1724361386160,0.08393511,2622.4,2622.3,9.77134]
[1724361386363,0.08393511,2622.4,2622.3,5.9579]
[1724361386668,3.81272,2622.8,2622.3,5.9579]
[1724361387260,0.08398232,2622.7,2622.3,5.9579]
[1724361387467,0.08398232,2622.7,2622.3,6.94143313]
[1724361387622,3.81272,2622.8,2622.3,6.94143313]
[1724361387819,0.08398232,2622.6,2622.3,6.94143313]
[1724361388020,3.81272,2622.8,2622.3,6.94143313]
[1724361388244,0.08398232,2622.5,2622.3,6.94143313]
[1724361388459,3.81272,2622.8,2622.4,1.08188645]
[1724361389544,7.62553,2622.8,2622.4,1.08188645]
[1724361389867,3.81272,2622.8,2622.4,1.08188645]
[1724361390998,7.62555,2622.8,2622.4,1.08188645]
[1724361392614,7.62552,2622.8,2622.4,1.08188645]
[1724361393456,3.81286,2622.7,2622.4,1.08188645]
[1724361394079,3.81286,2622.7,2622.3,5.9579]
[1724361396506,0.08412392,2622.6,2622.3,5.9579]
[1724361404011,3.81278,2622.8,2622.3,5.9579]
[1724361404299,0.08430596,2622.7,2622.3,5.9579]
[1724361404701,3.81278,2622.8,2622.3,5.9579]
[1724361405356,0.08430596,2622.7,2622.3,11.49084513]
[1724361405524,0.08430596,2622.7,2622.5,3.81307]
[1724361405731,3.81237,2623.1,2622.5,3.81307]
[1724361406449,3.89678293,2623.0,2622.5,3.81307]
[1724361407317,3.89678293,2623.0,2622.4,9.73678]
[1724361407318,7.70930293,2623.0,2622.4,9.73678]
[1724361407525,3.89678293,2623.0,2622.4,9.73678]
[1724361407718,7.70930293,2623.0,2622.4,9.73678]
[1724361407930,7.70930293,2623.0,2622.4,10.54540927]
[1724361408949,3.81273,2622.8,2622.2,3.87756134]
[1724361409172,3.81288,2622.7,2622.2,0.06397134]
[1724361409371,6.1648,2622.6,2622.2,0.06397134]
[1724361409574,6.24913293,2622.6,2622.2,0.06397134]
[1724361411391,6.24913293,2622.6,2622.2,3.87753134]
[1724361415352,6.24913293,2622.6,2622.2,3.87748134]
[1724361417082,6.24913293,2622.6,2622.2,7.69099134]
[1724361417491,6.24913293,2622.6,2622.2,3.87748134]
[1724361418096,6.24913293,2622.6,2622.2,7.69099134]
[1724361419207,6.24913293,2622.6,2622.2,3.87745134]
[1724361419384,7.25532322,2622.6,2622.2,3.87745134]
[1724361419915,7.25532322,2622.6,2622.2,7.69095134]
[1724361420903,7.25532322,2622.6,2622.3,3.81344]
[1724361423105,7.25532322,2622.6,2622.2,3.87745134]
[1724361423279,7.25532322,2622.6,2622.2,0.06397134]
[1724361423280,4.90355322,2622.6,2622.2,0.06397134]
[1724361423482,7.2815766,2622.5,2622.2,0.06397134]
[1724361423880,0.08461606,2622.4,2622.2,0.06397134]
[1724361424415,7.2815766,2622.5,2622.2,0.06397134]
[1724361424926,0.08461606,2622.4,2622.2,0.06397134]
[1724361432954,6.5678,2622.3,2622.2,0.06397134]
[1724361433259,7.57399029,2622.3,2622.2,0.06397134]
[1724361433466,4.90424635,2622.3,2622.2,0.06397134]
[1724361433752,11.47204635,2622.3,2622.2,0.06397134]
[1724361434276,15.28548635,2622.3,2622.2,0.06397134]
[1724361441527,18.83548635,2622.3,2622.2,0.06397134]
[1724361441725,22.64892635,2622.3,2622.2,0.06397134]
[1724361445146,18.83548635,2622.3,2622.2,0.06397134]
[1724361464826,18.31848635,2622.3,2622.2,0.06397134]
[1724361476166,22.13192635,2622.3,2622.2,0.06397134]
[1724361484188,25.94536635,2622.3,2622.2,0.06397134]
[1724361484892,22.13192635,2622.3,2622.2,0.06397134]
[1724361485852,25.94536635,2622.3,2622.2,0.06397134]
[1724361486252,25.94536635,2622.3,2620.7,5.01464105]
[1724361486253,0.05,2622.1,2620.4,7.1649207]
[1724361486453,3.81606,2620.5,2620.4,6.3656]
[1724361486648,3.8158,2620.7,2620.4,6.3656]
[1724361486901,3.81555,2620.9,2620.4,6.3656]
[1724361487198,3.89864451,2620.8,2620.4,6.3656]
[1724361487406,3.81589,2620.7,2620.4,6.3656]
[1724361487907,0.08302451,2620.6,2620.4,6.3656]
[1724361490981,0.08302451,2620.6,2619.9,3.81685]
[1724361490982,3.89897451,2620.6,2620.0,6.197]
[1724361491182,3.89897451,2620.6,2620.0,7.86458961]
[1724361491979,3.81609,2620.5,2620.0,7.86458961]
[1724361492313,3.81632,2620.4,2620.0,7.86458961]
[1724361492622,0.08302451,2620.3,2620.0,7.86458961]
[1724361492830,0.08302451,2620.3,2620.0,6.197]
[1724361493404,3.81609,2620.5,2620.0,6.197]
[1724361493599,0.08302451,2620.2,2620.0,6.197]
[1724361493926,3.81609,2620.5,2620.0,6.197]
[1724361494326,0.08302451,2620.4,2620.0,6.197]
[1724361497302,3.89923451,2620.4,2620.0,6.197]
[1724361500943,0.08302451,2620.4,2620.2,5.9413]
[1724361501405,3.0,2620.6,2620.2,5.9413]
[1724361501606,0.08219424,2620.3,2620.2,5.9413]
[1724361502137,6.81593,2620.6,2620.2,5.9413]
[1724361502334,0.07869412,2620.3,2620.2,5.9413]
[1724361502647,6.81593,2620.6,2620.2,6.82363069]
[1724361503166,0.07869412,2620.5,2620.4,3.81621]
[1724361503384,3.81527,2621.1,2620.4,3.81621]
[1724361503385,3.8154,2621.0,2620.4,9.75751]
[1724361503536,0.07869412,2620.5,2620.4,9.75751]
[1724361503885,3.8154,2621.0,2620.4,11.20313407]
[1724361504046,0.07869412,2620.5,2620.4,11.20313407]
[1724361504383,3.8154,2621.0,2620.4,11.20313407]
[1724361504526,7.63059,2621.1,2620.5,3.81603]
[1724361504730,0.07869412,2620.9,2620.5,5.31796041]
[1724361504929,6.81534,2621.0,2620.5,5.31796041]
[1724361505168,0.07869412,2620.8,2620.5,5.31796041]
[1724361505378,3.81498,2621.3,2620.7,6.3429]
[1724361505673,3.81498,2621.3,2620.8,1.015873]
[1724361505984,3.8146,2621.6,2620.9,10.15823]
[1724361506145,3.81472,2621.5,2620.9,6.3429]
[1724361506481,3.81472,2621.5,2621.0,1.1174363]
[1724361507659,3.81478,2621.4,2621.0,1.1174363]
[1724361508533,3.81472,2621.5,2621.0,1.1174363]
[1724361508733,7.62943,2621.5,2621.0,1.1174363]
[1724361511642,3.81471,2621.5,2621.0,1.1174363]
[1724361511868,7.62942,2621.5,2621.1,0.74603363]
[1724361514497,3.81471,2621.5,2621.1,0.74603363]
[1724361514664,7.62943,2621.5,2621.1,0.74603363]
[1724361515678,3.81476,2621.4,2621.1,0.74603363]
[1724361516283,3.81476,2621.4,2621.0,1.1174363]
[1724361516580,0.0797089,2621.3,2621.0,1.1174363]
[1724361517181,3.81471,2621.5,2621.0,1.1174363]
[1724361517402,0.0797089,2621.2,2621.0,1.1174363]
[1724361517577,3.81471,2621.5,2621.0,1.1174363]
[1724361517881,0.07971566,2621.1,2621.0,1.1174363]
[1724361518404,3.81471,2621.5,2621.0,1.1174363]
[1724361518602,0.07971566,2621.1,2621.0,1.1174363]
[1724361518799,3.81471,2621.5,2621.0,1.1174363]
[1724361519006,0.07971566,2621.1,2621.0,1.1174363]
[1724361519165,3.81471,2621.5,2621.0,1.1174363]
[1724361519369,0.07971566,2621.1,2621.0,1.1174363]
[1724361519567,3.81471,2621.5,2621.0,1.1174363]
[1724361519890,3.81471,2621.5,2621.1,6.0038]
[1724361520091,3.0,2621.8,2621.3,3.81482]
[1724361520268,3.0,2621.8,2621.4,6.0038]
[1724361521104,6.81425,2621.8,2621.4,6.0038]
[1724361522066,3.81412,2621.9,2621.4,6.0038]
[1724361522277,3.81393,2622.0,2621.4,10.800328]
[1724361522480,3.0,2621.9,2621.4,10.800418]
[1724361523595,3.0,2621.9,2621.5,3.81458]
[1724361523964,3.81393,2622.0,2621.5,3.81458]
[1724361524165,3.81393,2622.0,2621.6,1.0800248]
[1724361527294,3.81393,2622.0,2621.5,3.81458]
[1724361531607,0.08006709,2621.9,2621.5,3.81458]
[1724361560083,0.08006709,2621.9,2621.4,9.81847]
[1724361566694,0.08006709,2621.9,2621.5,3.81459]
[1724361571484,6.14106709,2621.9,2621.5,3.81459]
[1724361582828,9.95509709,2621.9,2621.4,9.81854]
[1724361583030,9.95509709,2621.9,2621.4,3.81474]
[1724361593132,9.95509709,2621.9,2621.2,3.81497]
[1724361593330,3.81484,2621.4,2621.0,0.7993207]
[1724361593532,3.81484,2621.4,2621.1,1.32681899]
[1724361593533,6.3797,2621.3,2621.1,1.32681899]
[1724361593838,0.08042527,2621.2,2620.9,11.17541]
[1724361594199,6.3797,2621.3,2621.0,1.32689209]
[1724361594525,0.08042527,2621.2,2620.9,11.17541]
[1724361594692,6.3797,2621.3,2620.9,11.17541]
[1724361594892,0.08042527,2621.2,2620.9,14.9908]
[1724361595130,6.3797,2621.3,2620.9,14.9908]
[1724361595630,0.08042527,2621.2,2620.9,14.9908]
[1724361595938,6.3797,2621.3,2620.9,14.9908]
[1724361596148,0.08042527,2621.2,2621.0,3.81532]
[1724361596497,6.3797,2621.3,2621.0,3.81532]
[1724361596898,0.08042527,2621.2,2621.0,3.81532]
[1724361597187,6.3797,2621.3,2621.0,3.81532]
[1724361597606,0.08042527,2621.2,2621.0,3.81532]
[1724361597931,6.3797,2621.3,2621.0,3.81532]
[1724361598232,6.3797,2621.3,2621.1,3.81516]
[1724361598398,0.0802563,2621.2,2621.1,3.81516]
[1724361598799,6.3797,2621.3,2621.1,3.81516]
[1724361599113,0.0802563,2621.2,2621.1,3.81516]
[1724361599341,6.3797,2621.3,2621.1,3.81516]
[1724361599846,0.0802563,2621.2,2621.1,3.81516]
[1724361600212,6.3797,2621.3,2621.1,3.81516]
[1724361600400,0.0802563,2621.2,2621.1,3.81516]
[1724361600826,6.3797,2621.3,2621.1,3.81516]
[1724361601038,0.0802563,2621.2,2621.1,3.81516]
[1724361601753,6.3797,2621.3,2621.1,3.81516]
[1724361601952,0.0802563,2621.2,2621.1,3.81516]
[1724361602453,6.3797,2621.3,2621.1,3.81516]
[1724361602652,0.0802563,2621.2,2621.1,3.81516]
[1724361602954,6.3797,2621.3,2621.1,3.81516]
[1724361603251,0.0802563,2621.2,2621.1,3.81516]
[1724361603551,6.3797,2621.3,2621.1,3.81516]
[1724361603746,0.0802563,2621.2,2621.1,3.81516]
[1724361604144,6.3797,2621.3,2621.1,3.81516]
[1724361604330,0.0802563,2621.2,2621.1,3.81516]
[1724361604636,6.3797,2621.3,2621.1,3.81516]
[1724361604957,0.0802563,2621.2,2621.1,3.81516]
[1724361605462,6.3797,2621.3,2621.1,3.81516]
[1724361605645,0.0802563,2621.2,2621.1,3.81516]
[1724361606374,6.3797,2621.3,2621.1,3.81516]
[1724361606667,0.0802563,2621.2,2621.1,3.81516]
[1724361606816,6.3797,2621.3,2621.1,3.81516]
[1724361607249,0.0802563,2621.2,2621.1,3.81516]
[1724361607451,6.3797,2621.3,2621.1,3.81516]
[1724361607817,0.0802563,2621.2,2621.1,3.81516]
[1724361608254,6.3797,2621.3,2621.1,3.81516]
[1724361608558,0.0802563,2621.2,2621.1,3.81516]
[1724361608914,6.3797,2621.3,2621.1,3.81516]
[1724361609121,0.0802563,2621.2,2621.1,3.81519]
[1724361609349,6.2361,2621.5,2621.1,3.81519]
[1724361609512,6.2361,2621.5,2621.1,7.63038]
[1724361609513,0.0802563,2621.2,2621.1,7.63038]
[1724361609717,6.2361,2621.5,2621.2,3.81495]
[1724361615671,6.2361,2621.5,2621.1,3.81519]
[1724361615969,6.2361,2621.5,2621.1,7.6303]
[1724361616173,6.99994089,2621.5,2621.1,7.6303]
[1724361616880,6.99994089,2621.5,2621.1,3.81511]
[1724361617577,6.99994089,2621.5,2621.1,7.63022]
[1724361618440,6.99994089,2621.5,2621.1,3.81511]
[1724361620274,3.81476,2621.4,2620.9,3.81536]
[1724361620473,6.1355,2621.3,2620.9,3.81536]
[1724361621273,6.1355,2621.3,2620.9,7.63075]
[1724361621478,0.07755535,2621.2,2620.9,7.63075]
[1724361621775,6.1355,2621.3,2620.9,7.63075]
[1724361621997,0.07755535,2621.1,2620.9,3.81536]
[1724361622135,6.1355,2621.3,2620.9,7.63076]
[1724361622341,0.07755535,2621.0,2620.9,3.81536]
[1724361622540,6.1355,2621.3,2620.9,3.81536]
[1724361622840,6.89934089,2621.3,2620.9,3.81536]
[1724361623040,0.07755535,2621.2,2620.9,3.81536]
[1724361623354,6.89934089,2621.3,2620.9,3.81536]
[1724361623574,0.07755535,2621.1,2620.9,3.81536]
[1724361623878,0.07755535,2621.0,2620.9,3.81536]
[1724361624074,1.146,2621.2,2620.9,3.81536]
[1724361624277,0.07755535,2621.0,2620.9,3.81536]
[1724361624592,1.146,2621.2,2620.9,3.81536]
[1724361625177,0.07755535,2621.1,2620.9,3.81536]
[1724361631678,0.11661792,2621.1,2620.9,3.81536]
[1724361633080,0.11661792,2621.1,2620.7,3.81568]
[1724361633400,1.146,2621.2,2620.8,1.32690067]
[1724361633604,1.146,2621.2,2620.7,7.63137]
[1724361633770,0.11652317,2621.1,2620.8,1.3268989]
[1724361633964,0.11652317,2621.1,2620.7,7.63137]
[1724361634168,0.11652317,2621.1,2620.8,1.32690168]
[1724361634490,6.4558,2621.0,2620.7,7.63137]
[1724361634729,6.57230963,2621.0,2620.8,1.32691234]
[1724361635003,6.57230963,2621.0,2620.7,3.81568]
[1724361635170,6.57230963,2621.0,2620.8,3.8156]
[1724361647424,6.57230963,2621.0,2620.9,3.81548]
[1724361647789,6.4558,2621.0,2620.9,3.81548]
[1724361648191,6.57228253,2621.0,2620.9,3.81548]
[1724361662030,6.57228253,2621.0,2620.8,3.81561]
[1724361664056,0.11648253,2621.0,2620.9,6.2301]
[1724361664218,0.11648253,2621.0,2620.9,7.13266523]
[1724361664416,6.4685,2621.3,2620.9,7.13266066]
[1724361664649,0.11642163,2621.0,2620.9,3.81548]
[1724361664815,6.4685,2621.3,2620.9,3.81548]
[1724361665023,0.11642163,2621.0,2620.9,3.81548]
[1724361665644,6.4685,2621.3,2620.9,3.81548]
[1724361665835,0.11642163,2621.0,2620.9,3.81548]
[1724361666033,6.4685,2621.3,2620.9,3.81548]
[1724361666212,0.11642163,2621.0,2620.9,3.81548]
[1724361666412,6.4685,2621.3,2620.9,3.81548]
[1724361666655,0.11642163,2621.0,2620.9,3.81548]
[1724361666850,6.4685,2621.3,2620.9,3.81548]
[1724361667039,0.11642163,2621.0,2620.9,3.81548]
[1724361667211,6.4685,2621.3,2620.9,3.81548]
[1724361667413,0.11642163,2621.0,2620.9,3.81548]
[1724361667745,0.11642163,2621.0,2620.9,5.14238942]
[1724361667954,6.4685,2621.3,2620.9,3.81548]
[1724361668252,0.11642163,2621.0,2620.9,3.81548]
[1724361668455,6.4685,2621.3,2620.9,5.14240712]
[1724361668628,0.11642163,2621.0,2620.9,3.81548]
[1724361669127,6.4685,2621.3,2620.9,3.81548]
[1724361669309,0.11642163,2621.0,2620.9,3.81548]
[1724361669513,6.4685,2621.3,2620.9,3.81548]
[1724361669710,0.11642163,2621.0,2620.9,3.81548]
[1724361669925,6.4685,2621.3,2620.9,3.81548]
[1724361670144,0.11642163,2621.0,2620.9,3.81548]
[1724361670349,6.4685,2621.3,2620.9,5.14240006]
[1724361670555,0.11642163,2621.0,2620.9,3.81548]
[1724361670751,6.4685,2621.3,2620.9,3.81548]
[1724361670969,0.11642163,2621.0,2620.9,3.81548]
[1724361671166,6.4685,2621.3,2620.9,3.81548]
[1724361671377,0.11642163,2621.0,2620.9,3.81548]
[1724361671572,6.4685,2621.3,2620.9,5.1424002]
[1724361671731,0.11642163,2621.0,2620.9,3.81548]
[1724361672048,6.4685,2621.3,2620.9,3.81548]
[1724361672337,0.11642163,2621.0,2620.9,3.81548]
[1724361672488,6.4685,2621.3,2620.9,5.1424006]
[1724361672694,0.11642163,2621.2,2620.9,3.81548]
[1724361672949,6.4685,2621.3,2620.9,3.81548]
[1724361673180,0.11642163,2621.1,2620.9,3.81548]
[1724361673494,6.4685,2621.3,2620.9,3.81548]
[1724361673704,0.11642163,2621.0,2620.9,3.81548]
[1724361674001,0.11638776,2621.2,2620.9,3.81548]
[1724361674301,7.6145,2621.3,2620.9,3.81548]
[1724361674504,0.11638776,2621.1,2620.8,3.81561]
[1724361674680,11.42944,2621.3,2620.8,3.81561]
[1724361675006,0.11638776,2621.2,2620.8,3.81561]
[1724361675600,0.11638776,2621.1,2620.8,3.81561]
[1724361675802,11.42944,2621.3,2620.8,3.81561]
[1724361676009,0.11638776,2621.0,2620.8,3.81561]
[1724361676192,11.42944,2621.3,2620.8,3.81561]
[1724361676402,0.11638776,2620.9,2620.8,3.81561]
[1724361676707,11.42944,2621.3,2620.8,5.14256548]
[1724361676904,0.11638776,2620.9,2620.8,3.81561]
[1724361677108,0.11638776,2620.9,2620.8,5.14256349]
[1724361677279,11.42944,2621.3,2620.8,5.14256349]
[1724361677467,0.11638776,2620.9,2620.8,3.81561]
[1724361677673,11.42944,2621.3,2620.8,5.14257122]
[1724361678011,11.42944,2621.3,2620.8,3.81561]
[1724361678330,0.11638776,2621.2,2620.8,3.81561]
[1724361678812,0.11638776,2621.1,2620.8,3.81561]
[1724361679256,11.42944,2621.3,2620.8,3.81561]
[1724361679756,0.11638776,2621.2,2620.8,3.81561]
[1724361679954,11.42944,2621.3,2620.8,3.81561]
[1724361680205,0.11638776,2621.1,2620.8,3.81561]
[1724361680375,11.42944,2621.3,2620.8,3.81561]
[1724361680706,0.11638776,2621.0,2620.8,3.81561]
[1724361680915,11.42944,2621.3,2620.8,3.81561]
[1724361681058,0.11638776,2620.9,2620.8,3.81561]
[1724361681418,11.42944,2621.3,2620.8,5.14257142]
[1724361681556,0.11638776,2620.9,2620.8,3.81561]
[1724361681757,11.42944,2621.3,2620.8,3.81561]
[1724361682013,0.11638776,2620.9,2620.8,3.81561]
[1724361682178,11.42944,2621.3,2620.8,3.81561]
[1724361682511,0.11638776,2620.9,2620.8,3.81561]
[1724361682687,11.42944,2621.3,2620.8,3.81561]
[1724361682891,0.11638776,2620.9,2620.8,3.81561]
[1724361683073,11.42944,2621.3,2620.8,5.14256286]
[1724361683270,0.11638776,2620.9,2620.8,3.81561]
[1724361683474,11.42944,2621.3,2620.8,3.81561]
[1724361683674,0.11638776,2620.9,2620.8,3.81561]
[1724361683910,11.42944,2621.3,2620.8,3.81561]
[1724361684114,0.1163607,2620.9,2620.8,3.81561]
[1724361684561,11.42944,2621.3,2620.8,3.81561]
[1724361684764,0.1163607,2620.9,2620.8,3.81561]
[1724361685021,11.42944,2621.3,2620.8,5.14257793]
[1724361685166,0.1163607,2620.9,2620.8,3.81561]
[1724361685519,11.42944,2621.3,2620.8,5.14257771]
[1724361685662,0.1163607,2620.9,2620.8,3.81561]